[Event "WTCC-50 2018"]
[Site "Radebeul"]
[Date "2018.07.13"]
[Round "7"]
[White "Fegan, Chris"]
[Black "Gempe, Thomas"]
[Result "0-1"]
[ECO "A45"]
[WhiteElo "2040"]
[BlackElo "2178"]
[Annotator "NA"]
[PlyCount "134"]
[EventDate "2018.07.07"]
[EventType "team-tourn"]
[EventCountry "GER"]
[SourceTitle "playchess.com"]
[Source "ChessBase"]
[SourceQuality "1"]
[TimeControl "40/5400+30:1800+30"]

1. d4 {[%emt 0:00:00]} Nf6 {[%emt 0:00:00]} 2. Bg5 {[%emt 0:00:00]} d5 {[%emt 0:01:08]} 3. Bxf6 {[%emt 0:00:04]} exf6 {[%emt 0:00:36]} 4. e3 {[%emt 0:00:10]} Be6 {[%emt 0:00:50]} 5. Ne2 {[%emt 0:01:48] D00: 1 d4 d5: Unusual lines} (5. g3 c6 6. Bg2 Qb6 7. b3 h5 8. h4 Nd7 9. Nd2 O-O-O 10. a3 Kb8 11. c4 dxc4 12. bxc4 Qa5 13. Qc2 Bb4 14. Ngf3 Bf5 15. Qa2 Bc3 {½-½ (15) Velilla Velasco,F (2557)-Straka,Z (2568) ICCF email 2015}) 5... Bd6 {[%emt 0:04:54]} 6. Nf4 {[%emt 0:02:22]} O-O {[%emt 0:05:41]} 7. Nxe6 {[%emt 0:01:57]} fxe6 {[%emt 0:02:25]} 8. c4 {[%emt 0:00:24]} c6 {[%emt 0:00:58]} 9. Nc3 {[%emt 0:00:56]} Nd7 {[%emt 0:01:08]} 10. Bd3 {[%emt 0:00:36]} f5 {[%emt 0:00:31]} 11. g4 $146 {[%emt 0:02:40]} ({Predecessor:} 11. cxd5 cxd5 12. Qb3 Nf6 {½-½ (50) Pomes Marcet,J (2410)-Gomez Esteban,J (2440) San Sebastian 1995}) 11... Qh4 {[%emt 0:25:02]} 12. gxf5 {[%emt 0:03:06]} e5 {[%emt 0:03:51]} 13. c5 {[%emt 0:30:57]} exd4 {[%emt 0:07:13]} 14. cxd6 {[%emt 0:05:28]} dxc3 {[%emt 0:04:22]} 15. bxc3 {[%emt 0:07:16]} Ne5 {[%emt 0:13:09]} 16. h3 {[%emt 0:12:38]} Rae8 {[%emt 0:07:16]} 17. Qe2 {[%emt 0:11:08]} Qf6 {[%emt 0:02:22]} 18. O-O-O {[%emt 0:02:25]} Qxd6 {[%emt 0:03:59]} 19. Kb1 {[%emt 0:08:41]} b5 {[%emt 0:05:19]} 20. e4 {[%emt 0:01:17]} Nc4 {[%emt 0:05:31]} 21. Bxc4 {[%emt 0:00:24]} bxc4 {[%emt 0:00:05]} 22. Ka1 {[%emt 0:01:30]} Qe5 {[%emt 0:00:38]} 23. Rd4 {[%emt 0:00:42]} c5 {[%emt 0:01:45]} 24. f4 Qxf4 {[%emt 0:00:58]} 25. Rxd5 {[%emt 0:01:22]} Rxe4 {[%emt 0:00:08]} 26. Rf1 {[%emt 0:01:44]} Rxe2 {[%emt 0:01:45]} 27. Rxf4 {[%emt 0:00:05]} Rb8 {[%emt 0:00:12]} 28. Rd1 {[%emt 0:01:15]} Rbb2 {[%emt 0:00:25]} 29. Rxc4 {[%emt 0:00:13]} Rxa2+ {[%emt 0:00:14]} 30. Kb1 {[%emt 0:00:05]} Reb2+ {[%emt 0:00:39]} 31. Kc1 {[%emt 0:00:08]} Rf2 {[%emt 0:00:18]} 32. Kb1 {[%emt 0:00:13]} Rab2+ {[%emt 0:00:37]} 33. Ka1 {[%emt 0:00:13]} Rb5 {[%emt 0:01:31]} 34. Rd5 {[%emt 0:02:04]} Rf3 {[%emt 0:00:46]} 35. h4 {[%emt 0:00:56]} Kf7 {[%emt 0:00:31]} 36. Rd7+ {[%emt 0:01:02]} Kf6 {[%emt 0:00:05]} 37. Rxa7 {[%emt 0:00:14]} Rxf5 {[%emt 0:00:21]} 38. Rc7 {[%emt 0:00:58]} h5 {[%emt 0:01:07]} 39. Rc6+ {[%emt 0:00:50]} Kf7 {[%emt 0:00:16]} 40. Rc7+ {[%emt 0:01:32]} Kg6 {[%emt 0:00:37]} 41. Ka2 {[%emt 0:03:13]} Kf6 {[%emt 0:10:14]} 42. Rc6+ {[%emt 0:08:58]} Kf7 {[%emt 0:05:46]} 43. Rc7+ {[%emt 0:04:58]} Kg6 {[%emt 0:01:26]} 44. Re4 {[%emt 0:03:01]} Rf6 {[%emt 0:01:08]} 45. Ra4 {[%emt 0:02:30]} Rf2+ {[%emt 0:04:50]} 46. Ka1 $17 {[%emt 0:02:23]} Rg2 {[%emt 0:01:07]} 47. c4 {[%emt 0:03:37]} Rb6 {[%emt 0:00:51]} 48. Raa7 {[%emt 0:02:48]} Kh6 {[%emt 0:01:03]} 49. Rxc5 {[%emt 0:01:11]} Rf6 {[%emt 0:00:30]} 50. Rb5 {[%emt 0:01:52]} Rg4 {[%emt 0:01:47]} 51. Rg5 {[%emt 0:00:41]} Rg6 {[%emt 0:03:01]} 52. Rc5 {[%emt 0:00:35]} Rxh4 {[%emt 0:00:31]} 53. Ra8 {[%emt 0:00:30]} Rg2 {[%emt 0:00:55]} 54. Rb8 {[%emt 0:00:34]} Rh1+ {[%emt 0:00:48]} 55. Rb1 {[%emt 0:00:06]} Rxb1+ {[%emt 0:00:07]} 56. Kxb1 {[%emt 0:00:05]} h4 {[%emt 0:00:07]} 57. Rc8 {[%emt 0:00:13]} Kh7 {[%emt 0:00:31]} 58. Rc5 {[%emt 0:00:51]} g5 {[%emt 0:00:18]} 59. Rc7+ {[%emt 0:00:45]} Kg6 {[%emt 0:00:11]} 60. Rc6+ {[%emt 0:00:17]} Kh5 {[%emt 0:00:43]} 61. Rc8 {[%emt 0:00:17]} h3 {[%emt 0:00:09]} 62. Rh8+ {[%emt 0:01:18]} Kg4 {[%emt 0:00:06]} 63. c5 {[%emt 0:00:08]} h2 {[%emt 0:00:04]} 64. c6 {[%emt 0:00:13]} Rg1+ {[%emt 0:00:05]} 65. Kc2 {[%emt 0:00:04]} h1=Q {[%emt 0:00:09]} 66. Rxh1 {[%emt 0:00:05]} Rxh1 {[%emt 0:00:07]} 67. c7 {[%emt 0:00:04]} Rh8 {[%emt 0:00:06]} 0-1

[Event "WTCC-50 2018"]
[Site "Radebeul"]
[Date "2018.07.13"]
[Round "7"]
[White "Jhunjhnuwala, Suresh"]
[Black "Polster, Wolfgang"]
[Result "0-1"]
[ECO "C50"]
[WhiteElo "1880"]
[BlackElo "2203"]
[Annotator "NA"]
[PlyCount "202"]
[EventDate "2018.07.07"]
[EventType "team-tourn"]
[EventCountry "GER"]
[SourceTitle "playchess.com"]
[Source "ChessBase"]
[SourceQuality "1"]
[TimeControl "40/5400+30:1800+30"]

1. e4 {[%emt 0:00:00]} e5 {[%emt 0:00:00]} 2. Nf3 {[%emt 0:00:06]} Nc6 {[%emt 0:00:01]} 3. Bc4 {[%emt 0:00:44]} Nf6 {[%emt 0:00:41]} 4. d3 {[%emt 0:00:26]} Bc5 {[%emt 0:01:11]} 5. O-O {[%emt 0:00:13]} d6 {[%emt 0:02:46]} 6. h3 {[%emt 0:00:28]} a6 {[%emt 0:01:12] C50: Hungarian Defence and Giuoco Pianissimo} 7. a4 {[%emt 0:04:20]} (7. c3 h6 8. a4 O-O 9. Re1 Re8 10. Nbd2 Ba7 11. b4 Qe7 12. Nf1 Nh5 13. Ne3 {1-0 (34) Kryvoruchko,Y (2689)-Mamedyarov,S (2799) Riadh 2017}) 7... Be6 {[%emt 0:04:28]} 8. Bxe6 {[%emt 0:02:31]} fxe6 {[%emt 0:00:07]} 9. c3 {[%emt 0:01:03]} Ba7 {[%emt 0:01:00]} 10. Qb3 {[%emt 0:00:59]} Qc8 {[%emt 0:02:23]} 11. Ng5 $146 {[%emt 0:07:50]} ({Predecessor:} 11. Be3 O-O 12. Nbd2 Nh5 13. Bxa7 Rxa7 14. d4 exd4 15. cxd4 {½-½ (73) Birkisson,B (2023)-Kruse,J (2096) Douglas 2017}) 11... Nd8 {[%emt 0:00:42]} 12. Re1 {[%emt 0:07:21]} h6 {[%emt 0:01:02]} 13. Nf3 {[%emt 0:00:07]} Nc6 {[%emt 0:01:43]} 14. Be3 {[%emt 0:00:54]} O-O {[%emt 0:03:03]} 15. Bxa7 {[%emt 0:01:07]} Rxa7 {[%emt 0:00:32]} 16. Nbd2 {[%emt 0:00:30]} Kh7 {[%emt 0:07:03]} 17. Nf1 {[%emt 0:01:44]} Nh5 {[%emt 0:02:15]} 18. Qd1 {[%emt 0:13:54]} Qe8 {[%emt 0:01:38]} 19. g3 {[%emt 0:14:46]} Qf7 {[%emt 0:01:34]} 20. N1h2 {[%emt 0:02:05]} Raa8 {[%emt 0:01:02]} 21. Rf1 {[%emt 0:01:21]} Qe7 {[%emt 0:04:51]} 22. Qe2 {[%emt 0:07:31]} g6 {[%emt 0:07:36]} 23. b4 {[%emt 0:00:30]} Qf6 {[%emt 0:10:07]} 24. b5 {[%emt 0:00:59]} Nb8 {[%emt 0:02:12]} 25. Rfb1 {[%emt 0:08:15]} b6 {[%emt 0:01:18]} 26. a5 {[%emt 0:02:24]} axb5 {[%emt 0:00:36]} 27. axb6 {[%emt 0:00:55]} Rxa1 {[%emt 0:00:53]} 28. Rxa1 {[%emt 0:00:02]} cxb6 {[%emt 0:02:23]} 29. Qb2 {[%emt 0:01:05]} Qe7 {[%emt 0:04:24]} 30. Qxb5 {[%emt 0:00:39]} Qc7 {[%emt 0:01:15]} 31. c4 {[%emt 0:05:42]} Nf6 {[%emt 0:04:49]} 32. Rb1 {[%emt 0:04:15]} Nbd7 {[%emt 0:00:58]} 33. Ra1 {[%emt 0:01:05]} Nc5 {[%emt 0:01:54]} 34. Ra3 {[%emt 0:01:00]} Nfd7 {[%emt 0:02:19]} 35. Qb1 {[%emt 0:00:19]} Qc6 {[%emt 0:01:54]} 36. Qc1 {[%emt 0:02:59]} Kg7 {[%emt 0:02:19]} 37. Qa1 {[%emt 0:01:39]} b5 {[%emt 0:00:28]} 38. Qc3 {[%emt 0:05:29]} Rb8 {[%emt 0:05:31]} 39. cxb5 {[%emt 0:00:21]} Qxb5 {[%emt 0:00:43]} 40. Ra7 {[%emt 0:00:30]} Qb6 {[%emt 0:02:02]} 41. Ra3 {[%emt 0:03:12]} Qb1+ {[%emt 0:05:18]} 42. Kg2 {[%emt 0:01:56]} Rb3 {[%emt 0:02:29]} 43. Rxb3 {[%emt 0:02:50]} Qxb3 {[%emt 0:00:25]} 44. Qxb3 {[%emt 0:03:18]} Nxb3 {[%emt 0:00:07]} 45. Ne1 {[%emt 0:00:10]} Ndc5 {[%emt 0:04:33]} 46. Kf3 {[%emt 0:00:13]} d5 {[%emt 0:05:59]} 47. Ke3 {[%emt 0:00:56]} h5 {[%emt 0:00:15]} 48. Nhf3 {[%emt 0:00:40]} Kf6 {[%emt 0:00:28]} 49. h4 {[%emt 0:00:27]} Na4 {[%emt 0:02:24]} 50. Nc2 {[%emt 0:07:03]} Nc3 {[%emt 0:03:12]} 51. Ng5 {[%emt 0:03:01]} d4+ {[%emt 0:04:08]} 52. Kf3 {[%emt 0:00:06]} Nc1 {[%emt 0:00:30]} 53. Nb4 {[%emt 0:04:15]} Na4 {[%emt 0:02:22]} 54. Nh7+ {[%emt 0:02:13]} Kg7 {[%emt 0:00:59]} 55. Ng5 {[%emt 0:00:04]} Nc5 {[%emt 0:00:19]} 56. Nc6 {[%emt 0:02:04]} N5xd3 {[%emt 0:05:24]} 57. Nxe6+ {[%emt 0:01:52]} Kf6 {[%emt 0:00:12]} 58. Nexd4 {[%emt 0:00:04]} exd4 {[%emt 0:01:23]} 59. Nxd4 {[%emt 0:00:02]} Ne5+ {[%emt 0:04:24]} 60. Ke3 {[%emt 0:00:48]} Nc4+ {[%emt 0:00:32]} 61. Kf3 {[%emt 0:00:36]} Nd3 {[%emt 0:00:19]} 62. Ke2 {[%emt 0:00:32]} Nc5 {[%emt 0:01:23]} 63. f3 {[%emt 0:00:19]} Ne6 {[%emt 0:01:25]} 64. Nc2 {[%emt 0:00:22]} Ke5 {[%emt 0:01:00]} 65. Nb4 {[%emt 0:00:47]} Nd4+ {[%emt 0:01:19]} 66. Kf2 {[%emt 0:00:51]} Nb2 {[%emt 0:01:36]} (66... Ke6 $15 67. g4 Ne5) 67. Ke3 {[%emt 0:02:34]} Nc4+ {[%emt 0:00:42]} 68. Kf2 {[%emt 0:00:44]} Ne6 {[%emt 0:00:29]} 69. Nc6+ {[%emt 0:01:09]} Kd6 {[%emt 0:00:07]} 70. Nb4 {[%emt 0:00:01]} Kc5 {[%emt 0:00:46]} 71. Nc2 {[%emt 0:00:25]} Nd4 {[%emt 0:00:22]} 72. Ne1 {[%emt 0:00:04]} Ne5 {[%emt 0:00:39]} 73. Ke3 {[%emt 0:00:32]} Ne6 {[%emt 0:00:28]} 74. Ng2 {[%emt 0:00:51]} Kc4 {[%emt 0:02:08]} 75. Ne1 $2 {[%emt 0:02:38]} (75. Nf4 $11 {und Weiss steht sicher.} Nf8 76. g4) 75... Kc3 {[%emt 0:00:28]} 76. Ng2 {[%emt 0:00:23]} Nc4+ {[%emt 0:00:19]} 77. Kf2 {[%emt 0:00:16]} Kd2 {[%emt 0:00:48]} 78. f4 {[%emt 0:00:10]} Nd6 {[%emt 0:02:08]} 79. e5 {[%emt 0:00:43]} Nf5 {[%emt 0:00:14]} 80. Ne1 {[%emt 0:01:04]} Ned4 {[%emt 0:00:53]} (80... Nfd4 $142 81. Nf3+ Nxf3 82. Kxf3 Kd3) 81. Ng2 {[%emt 0:00:03]} Kd3 {[%emt 0:00:22]} 82. Ne1+ {[%emt 0:00:12]} Ke4 {[%emt 0:00:12]} 83. Ng2 {[%emt 0:00:13]} Ne6 {[%emt 0:00:53]} 84. Ne1 {[%emt 0:00:16]} Nh6 {[%emt 0:00:22]} 85. Kg2 {[%emt 0:02:10]} Ng4 {[%emt 0:00:17]} 86. Nf3 {[%emt 0:00:08]} Ke3 {[%emt 0:00:54]} 87. Ng1 {[%emt 0:00:46]} Nd4 $2 {[%emt 0:00:37]} 88. Nh3 {[%emt 0:00:34]} Ke2 {[%emt 0:00:45]} 89. Ng1+ {[%emt 0:00:01]} Ke3 {[%emt 0:00:50]} 90. Nh3 {[%emt 0:00:03]} Nf3 {[%emt 0:00:42]} 91. Kf1 {[%emt 0:00:44]} Ke4 {[%emt 0:00:39]} 92. Ke2 {[%emt 0:00:35]} (92. e6 $142 Ne3+ 93. Kf2) 92... Nd4+ {[%emt 0:00:10]} 93. Kf1 {[%emt 0:00:10]} Kf3 {[%emt 0:00:09]} 94. Ng5+ {[%emt 0:01:14]} Kxg3 {[%emt 0:00:09]} 95. e6 {[%emt 0:00:11]} Ne3+ {[%emt 0:00:20]} 96. Ke1 {[%emt 0:00:46]} Nef5 {[%emt 0:00:15]} 97. Kd2 Kxf4 {[%emt 0:00:25]} 98. Kd3 {[%emt 0:01:17]} Ke5 {[%emt 0:00:27]} 99. Kd2 {[%emt 0:01:09]} Nxe6 {[%emt 0:00:08]} 100. Nf3+ {[%emt 0:00:33]} Kf4 {[%emt 0:00:08]} 101. Ke2 {[%emt 0:00:07]} Ned4+ {[%emt 0:00:06]} 0-1

[Event "WTCC-50 2018"]
[Site "Radebeul"]
[Date "2018.07.14"]
[Round "8"]
[White "Boensch, Uwe"]
[Black "Limpert, Michael"]
[Result "1-0"]
[ECO "D46"]
[WhiteElo "2559"]
[BlackElo "2159"]
[Annotator "ChessBase"]
[PlyCount "79"]
[EventDate "2018.07.07"]
[EventType "team-tourn"]
[EventCountry "GER"]
[SourceTitle "playchess.com"]
[Source "ChessBase"]
[SourceQuality "1"]
[TimeControl "40/5400+30:1800+30"]

1. d4 {[%emt 0:00:00]} d5 {[%emt 0:00:00]} 2. c4 {[%emt 0:00:00]} c6 {[%emt 0:00:00]} 3. Nf3 {[%emt 0:00:00]} Nf6 {[%emt 0:00:03]} 4. Nc3 {[%emt 0:00:00]} e6 {[%emt 0:00:08]} 5. e3 {[%emt 0:00:04]} Nbd7 {[%emt 0:00:06]} 6. Bd3 {[%emt 0:00:22]} a6 {[%emt 0:00:16]} 7. b3 {[%emt 0:01:34]} Bd6 {[%emt 0:00:13]} 8. O-O {[%emt 0:00:59]} O-O {[%emt 0:00:52]} 9. Bb2 {[%emt 0:00:54]} b5 {[%emt 0:03:28]} 10. c5 {[%emt 0:08:26]} Bc7 {[%emt 0:00:25]} 11. Qc2 {[%emt 0:00:06]} b4 {[%emt 0:10:46]} 12. Ne2 {[%emt 0:01:39]} a5 {[%emt 0:00:39]} 13. Ne5 {[%emt 0:03:53]} Nxe5 {[%emt 0:04:09]} 14. dxe5 {[%emt 0:00:02]} Ng4 {[%emt 0:00:12]} 15. h3 {[%emt 0:09:21]} Nxe5 {[%emt 0:00:50]} 16. Bxh7+ {[%emt 0:00:10]} Kh8 {[%emt 0:00:07]} 17. f4 {[%emt 0:02:26]} Nd7 {[%emt 0:14:01]} 18. Nd4 {[%emt 0:01:52]} Qh4 {[%emt 0:10:29]} 19. Bd3 {[%emt 0:00:46]} e5 {[%emt 0:03:02]} 20. Nf5 {[%emt 0:05:50]} Qh7 {[%emt 0:09:23]} 21. e4 {[%emt 0:29:35]} dxe4 {[%emt 0:30:38]} 22. Bxe4 {[%emt 0:00:18]} Nxc5 {[%emt 0:00:20]} 23. fxe5 {[%emt 0:04:14]} Nxe4 {[%emt 0:01:49]} 24. Qxe4 {[%emt 0:00:06]} Be6 {[%emt 0:00:58]} 25. Rf4 {[%emt 0:01:23]} g5 {[%emt 0:02:11]} 26. Rf3 {[%emt 0:08:00]} Bd5 {[%emt 0:03:54]} 27. Qg4 {[%emt 0:02:02]} Bxf3 {[%emt 0:00:42]} 28. Qxf3 {[%emt 0:07:34]} Rae8 {[%emt 0:01:56]} 29. e6+ {[%emt 0:06:29]} f6 {[%emt 0:00:12]} 30. Re1 {[%emt 0:00:30]} Bf4 {[%emt 0:01:51]} 31. Qg4 {[%emt 0:02:07]} Qg6 {[%emt 0:01:08]} 32. h4 {[%emt 0:03:02]} Kg8 {[%emt 0:00:37]} 33. e7 {[%emt 0:01:29]} Rf7 {[%emt 0:00:08]} 34. Re6 {[%emt 0:00:09]} Qh7 {[%emt 0:00:51]} 35. g3 {[%emt 0:00:48]} Bxg3 {[%emt 0:00:29]} 36. Bxf6 {[%emt 0:00:49]} Bxh4 {[%emt 0:00:23]} 37. Rd6 {[%emt 0:00:56]} Rxf6 {[%emt 0:00:38]} 38. Rxf6 {[%emt 0:00:13]} Rxe7 {[%emt 0:00:30]} 39. Qc4+ {[%emt 0:00:25]} Rf7 {[%emt 0:00:23]} 40. Rxf7 {[%emt 0:00:18]} 1-0

[Event "WTCC-50 2018"]
[Site "Radebeul"]
[Date "2018.07.14"]
[Round "8"]
[White "Speelman, Jon S"]
[Black "Weitzer, Steffen"]
[Result "1-0"]
[ECO "A04"]
[WhiteElo "2493"]
[BlackElo "2288"]
[Annotator "ChessBase"]
[PlyCount "87"]
[EventDate "2018.07.07"]
[EventType "team-tourn"]
[EventCountry "GER"]
[SourceTitle "playchess.com"]
[Source "ChessBase"]
[SourceQuality "1"]
[TimeControl "40/5400+30:1800+30"]

1. Nf3 {[%emt 0:00:00]} f5 {[%emt 0:00:00]} 2. b4 {[%emt 0:00:19]} Nf6 {[%emt 0:00:46]} 3. Bb2 {[%emt 0:00:07]} e6 {[%emt 0:00:30]} 4. a3 {[%emt 0:00:05]} d5 {[%emt 0:01:26]} 5. e3 {[%emt 0:02:14]} Bd6 {[%emt 0:00:59]} 6. Be2 {[%emt 0:02:23]} O-O {[%emt 0:00:28]} 7. O-O {[%emt 0:01:51]} c6 {[%emt 0:03:02]} 8. c4 {[%emt 0:02:40]} Qe7 {[%emt 0:02:33]} 9. Ne5 {[%emt 0:01:15]} Nbd7 {[%emt 0:00:52]} 10. f4 {[%emt 0:01:13]} Bc7 {[%emt 0:02:43]} 11. c5 {[%emt 0:05:57]} g5 {[%emt 0:04:57]} 12. d3 {[%emt 0:02:22]} Qg7 {[%emt 0:07:19]} 13. Nd2 {[%emt 0:04:12]} Qh6 {[%emt 0:02:16]} 14. Rf2 {[%emt 0:10:41]} gxf4 {[%emt 0:08:05]} 15. exf4 {[%emt 0:00:18]} d4 {[%emt 0:12:28]} 16. Bxd4 {[%emt 0:03:05]} Nd5 {[%emt 0:01:43]} 17. Ndc4 {[%emt 0:02:56]} Nxf4 {[%emt 0:03:34]} 18. Bf1 {[%emt 0:02:23]} Ng6 {[%emt 0:01:10]} 19. Qe1 {[%emt 0:05:17]} Ndxe5 {[%emt 0:05:58]} 20. Nxe5 {[%emt 0:00:06]} Rd8 {[%emt 0:01:48]} 21. Bc3 {[%emt 0:00:19]} Ne7 {[%emt 0:04:25]} 22. Rf3 {[%emt 0:01:21]} Nd5 {[%emt 0:08:50]} 23. Rg3+ {[%emt 0:08:03]} Kf8 {[%emt 0:00:17]} 24. Rh3 {[%emt 0:00:45]} Qf4 {[%emt 0:05:12]} 25. Rxh7 {[%emt 0:00:40]} Bxe5 {[%emt 0:07:40]} 26. Bxe5 {[%emt 0:00:14]} Qg5 {[%emt 0:02:44]} 27. h4 {[%emt 0:02:05]} Qg6 {[%emt 0:01:30]} 28. Rh8+ {[%emt 0:00:56]} Ke7 {[%emt 0:00:29]} 29. h5 {[%emt 0:00:29]} Qg5 {[%emt 0:01:13]} 30. Rh7+ {[%emt 0:00:07]} Ke8 {[%emt 0:01:24]} 31. Rg7 {[%emt 0:00:41]} Qxh5 {[%emt 0:01:48]} 32. Qg3 {[%emt 0:00:04]} Qh6 {[%emt 0:03:23]} 33. Be2 {[%emt 0:02:57]} f4 {[%emt 0:01:48]} 34. Rg8+ {[%emt 0:00:50]} Kd7 {[%emt 0:00:23]} 35. Qg7+ {[%emt 0:00:13]} Qxg7 {[%emt 0:00:09]} 36. Rxg7+ {[%emt 0:00:03]} Ke8 {[%emt 0:02:05]} 37. Bh5+ {[%emt 0:01:08]} Kf8 {[%emt 0:00:02]} 38. Rh7 {[%emt 0:00:24]} Bd7 {[%emt 0:01:22]} 39. Rf1 {[%emt 0:00:42]} Be8 {[%emt 0:00:21]} 40. Bxe8 {[%emt 0:00:35]} Kxe8 {[%emt 0:00:57]} 41. Bxf4 {[%emt 0:30:05]} Nxf4 {[%emt 0:09:42]} 42. Rxf4 {[%emt 0:00:00]} a5 {[%emt 0:00:26]} 43. Rff7 {[%emt 0:00:00]} Rab8 {[%emt 0:01:50]} 44. Rc7 {[%emt 0:00:00]} 1-0

[Event "WTCC-50 2018"]
[Site "Radebeul"]
[Date "2018.07.14"]
[Round "8"]
[White "Levin, Felix"]
[Black "Ehlvest, Jaan"]
[Result "1/2-1/2"]
[ECO "A46"]
[WhiteElo "2466"]
[BlackElo "2536"]
[Annotator "RC"]
[PlyCount "35"]
[EventDate "2018.07.07"]
[EventType "team-tourn"]
[EventCountry "GER"]
[SourceTitle "playchess.com"]
[Source "ChessBase"]
[SourceQuality "1"]
[TimeControl "40/5400+30:1800+30"]

1. d4 {[%emt 0:00:00]} Nf6 {[%emt 0:00:00]} 2. Nf3 {[%emt 0:00:00]} d6 {[%emt 0:00:00]} 3. g3 {[%emt 0:02:07]} Nbd7 {[%emt 0:01:17]} 4. Bg2 {[%emt 0:07:42]} e5 {[%emt 0:01:37]} 5. dxe5 {[%emt 0:10:41]} dxe5 {[%emt 0:00:10]} 6. O-O {[%emt 0:00:05]} Bc5 {[%emt 0:00:52]} 7. Nc3 {[%emt 0:00:12]} O-O {[%emt 0:01:18]} 8. e4 {[%emt 0:01:43]} a5 {[%emt 0:03:32]} 9. Nh4 {[%emt 0:06:47]} a4 {[%emt 0:05:38]} 10. Rb1 {[%emt 0:05:44]} Re8 {[%emt 0:09:35]} 11. b3 {[%emt 0:04:04]} axb3 {[%emt 0:11:16]} 12. axb3 {[%emt 0:00:14]} Nf8 {[%emt 0:12:57]} 13. Nf5 {[%emt 0:20:02]} Ne6 {[%emt 0:07:22]} 14. b4 {[%emt 0:14:42]} Bf8 {[%emt 0:01:42]} 15. Qxd8 {[%emt 0:01:26]} Rxd8 {[%emt 0:04:12]} 16. Nd5 {[%emt 0:00:20]} Nxd5 {[%emt 0:04:54]} 17. exd5 {[%emt 0:00:06]} Nd4 {[%emt 0:00:07]} 18. Nxd4 1/2-1/2

[Event "WTCC-50 2018"]
[Site "Radebeul"]
[Date "2018.07.14"]
[Round "8"]
[White "Tischbierek, Raj"]
[Black "Dietze, Frank"]
[Result "1-0"]
[ECO "B34"]
[WhiteElo "2436"]
[BlackElo "2203"]
[Annotator "NA RC"]
[PlyCount "51"]
[EventDate "2018.07.07"]
[EventType "team-tourn"]
[EventCountry "GER"]
[SourceTitle "playchess.com"]
[Source "ChessBase"]
[SourceQuality "1"]
[TimeControl "40/5400+30:1800+30"]

1. e4 {[%emt 0:00:00]} c5 {[%emt 0:00:00]} 2. Nc3 {[%emt 0:00:00]} Nc6 {[%emt 0:00:10]} 3. Nge2 {[%emt 0:00:05]} g6 {[%emt 0:00:12]} 4. d4 {[%emt 0:00:06]} cxd4 {[%emt 0:00:07]} 5. Nxd4 {[%emt 0:00:02]} Bg7 {[%emt 0:00:14]} 6. Nb3 {[%emt 0:00:10]} Nf6 {[%emt 0:00:09]} 7. Be2 {[%emt 0:00:05]} O-O {[%emt 0:00:10]} 8. O-O {[%emt 0:00:06]} d6 {[%emt 0:00:05]} 9. Bg5 {[%emt 0:00:35]} Be6 {[%emt 0:00:06]} 10. Kh1 {[%emt 0:00:10]} Rc8 {[%emt 0:00:49]} 11. f4 {[%emt 0:00:31]} Na5 {[%emt 0:00:18] LiveBook: 50 Games} 12. f5 {[%emt 0:00:11]} Bc4 {[%emt 0:02:39]} 13. Bd3 {[%emt 0:00:06]} a6 {[%emt 0:01:58] B70: Sizilianisch (Drachen-Variante)} (13... b5 14. Qe2 b4 15. Nd1 Re8 16. Ne3 Bxd3 17. cxd3 Nc6 18. Qf2 Ne5 19. Qe2 a5 20. a4 bxa3 21. Rxa3 Nc6 {½-½ (65) Vasquez Schroder,R (2554)-Gonzalez Acosta,B (2461) Cochabamba 2013}) 14. Nd2 {[%emt 0:05:04]} b5 {[%emt 0:07:26]} 15. Qe1 {[%emt 0:01:52]} b4 {[%emt 0:01:50]} 16. Nd1 {[%emt 0:00:43]} Bxd3 {[%emt 0:01:11]} 17. cxd3 {[%emt 0:00:04]} Nc6 $146 {[%emt 0:00:05]} ({Vorgänger:} 17... Qb6 18. Nf3 Nc6 19. Qh4 Qb5 20. Nf2 Ne5 21. Nd4 {1-0 (35) Kotsur,P (2425)-Cseke,R (2260) Budapest 1993}) 18. Nf3 {[%emt 0:06:54]} Ne5 {[%emt 0:04:59]} 19. Nxe5 {[%emt 0:06:17]} dxe5 {[%emt 0:00:02]} 20. Rf3 {[%emt 0:00:38]} Qd6 {[%emt 0:02:58]} 21. Ne3 {[%emt 0:03:54]} Qd4 {[%emt 0:07:07]} 22. b3 {[%emt 0:09:56]} Rc3 {[%emt 0:08:55]} 23. Rd1 {[%emt 0:03:12]} Rd8 $16 {[%emt 0:16:42]} 24. h3 {[%emt 0:24:25]} Rd7 {[%emt 0:12:29]} 25. Nc4 {[%emt 0:02:46]} Nxe4 {[%emt 0:19:00]} 26. Be3 {[%emt 0:01:06]} 1-0

[Event "WTCC-50 2018"]
[Site "Radebeul"]
[Date "2018.07.14"]
[Round "8"]
[White "Cummings, David H."]
[Black "Fritsche, Lutz"]
[Result "1-0"]
[ECO "E91"]
[WhiteElo "2336"]
[BlackElo "2303"]
[Annotator "NA"]
[PlyCount "81"]
[EventDate "2018.07.07"]
[EventType "team-tourn"]
[EventCountry "GER"]
[SourceTitle "playchess.com"]
[Source "ChessBase"]
[SourceQuality "1"]
[TimeControl "40/5400+30:1800+30"]

1. d4 {[%emt 0:00:00]} Nf6 {[%emt 0:00:00]} 2. Nf3 {[%emt 0:00:04]} g6 {[%emt 0:00:04]} 3. c4 {[%emt 0:00:12]} Bg7 {[%emt 0:00:16]} 4. Nc3 {[%emt 0:00:10]} O-O {[%emt 0:00:10]} 5. e4 {[%emt 0:00:06]} d6 {[%emt 0:00:06]} 6. Be2 {[%emt 0:00:10]} Nbd7 {[%emt 0:00:06]} 7. O-O {[%emt 0:00:26]} e5 {[%emt 0:00:18]} 8. d5 {[%emt 0:00:58]} Nc5 {[%emt 0:00:49]} 9. Qc2 {[%emt 0:00:48]} a5 {[%emt 0:00:07]} 10. Bg5 {[%emt 0:00:40]} Bd7 {[%emt 0:00:58]} 11. Nd2 {[%emt 0:03:27]} Qe8 {[%emt 0:00:32]} 12. b3 {[%emt 0:03:46]} Kh8 {[%emt 0:06:09]} 13. a3 {[%emt 0:13:03]} Ng8 {[%emt 0:01:33]} 14. b4 {[%emt 0:00:40]} Na6 {[%emt 0:01:46]} 15. Qb2 {[%emt 0:05:14]} f5 {[%emt 0:01:10]} 16. f3 $16 {[%emt 0:03:46]} Bf6 {[%emt 0:02:53]} 17. Be3 {[%emt 0:02:27]} Qe7 {[%emt 0:01:15]} 18. c5 {[%emt 0:06:40]} Bg5 {[%emt 0:43:34]} 19. Bxg5 {[%emt 0:14:54]} Qxg5 {[%emt 0:00:16]} 20. Nc4 {[%emt 0:06:06]} axb4 {[%emt 0:04:28]} 21. axb4 {[%emt 0:00:08]} Qe7 {[%emt 0:02:26]} 22. c6 {[%emt 0:12:11]} bxc6 {[%emt 0:06:13]} 23. dxc6 {[%emt 0:05:57]} Bxc6 {[%emt 0:02:02]} 24. b5 {[%emt 0:00:48]} Rfb8 {[%emt 0:00:13]} 25. Qd2 {[%emt 0:02:21]} Bxb5 {[%emt 0:01:42]} 26. Nxb5 {[%emt 0:00:36]} Rxb5 {[%emt 0:00:11]} 27. Ne3 {[%emt 0:00:32]} c6 {[%emt 0:09:15]} 28. Bxb5 {[%emt 0:00:50]} cxb5 {[%emt 0:00:07]} 29. exf5 {[%emt 0:03:34]} Qc7 {[%emt 0:08:49]} 30. fxg6 {[%emt 0:01:06]} hxg6 {[%emt 0:00:09]} 31. Nd5 {[%emt 0:00:43]} Qb7 {[%emt 0:00:15]} 32. Rfd1 {[%emt 0:03:33]} Nc5 {[%emt 0:03:32]} 33. Rxa8 {[%emt 0:00:49]} Qxa8 {[%emt 0:00:06]} 34. Nb6 {[%emt 0:04:42]} Qa3 {[%emt 0:00:49]} 35. Qxd6 {[%emt 0:01:21]} Qe3+ {[%emt 0:00:08]} 36. Kf1 {[%emt 0:01:32]} Nb3 {[%emt 0:00:58]} 37. Nd7 {[%emt 0:00:45]} e4 {[%emt 0:02:02]} 38. Qe5+ {[%emt 0:01:28]} Kh7 {[%emt 0:00:09]} 39. Nf8+ {[%emt 0:00:13]} Kh6 {[%emt 0:00:19]} 40. Qh8+ {[%emt 0:00:17]} Kg5 {[%emt 0:00:14]} 41. Rd5+ {[%emt 0:30:09]} 1-0